bitfinex/quotes_SOLUSD_20251106
["timestamp","ask_amount","ask_price","bid_price","bid_amount"]
[1762414136736,8.60782028,159.76,159.72,26.85264602]
[1762414137143,7.93782028,159.76,159.73,0.67]
[1762414138745,14.19695912,159.77,159.73,0.67]
[1762414140066,8.60782028,159.76,159.72,26.85264602]
[1762414140238,8.60782028,159.76,159.72,27.52264602]
[1762414140239,7.93782028,159.76,159.72,27.52264602]
[1762414140440,7.93782028,159.76,159.72,89.52264602]
[1762414140971,14.19729276,159.76,159.72,83.262]
[1762414141262,7.93782028,159.73,159.71,62.2]
[1762414141638,7.93782028,159.74,159.71,62.87]
[1762414141840,7.93782028,159.72,159.71,0.2]
[1762414142052,50.67,159.73,159.71,0.2]
[1762414142252,8.60782028,159.72,159.71,0.2]
[1762414142759,14.86877695,159.72,159.71,0.2]
[1762414143988,6.93095667,159.72,159.71,0.2]
[1762414144151,14.19877695,159.72,159.71,0.2]
[1762414144772,7.93782028,159.72,159.71,0.2]
[1762414145067,7.93782028,159.74,159.71,0.87]
[1762414146272,14.19799461,159.74,159.71,0.87]
[1762414146775,7.93782028,159.74,159.71,0.87]
[1762414146952,14.19761383,159.75,159.71,0.87]
[1762414147652,14.86761383,159.75,159.71,0.87]
[1762414148172,7.93782028,159.75,159.71,7.13131499]
[1762414148674,14.19689081,159.77,159.72,0.67]
[1762414148850,14.19689081,159.77,159.72,62.67]
[1762414149052,6.25907053,159.77,159.72,62.67]
[1762414149357,6.25907053,159.77,159.73,0.67]
[1762414149572,14.19689081,159.77,159.73,0.67]
[1762414149773,14.19689081,159.77,159.72,62.0]
[1762414149976,7.93782028,159.74,159.72,62.0]
[1762414150285,14.19689081,159.77,159.73,0.67]
[1762414151668,7.93782028,159.76,159.73,0.67]
[1762414157383,8.60782028,159.76,159.72,68.26083795]
[1762414157569,7.93782028,159.76,159.72,68.26083795]
[1762414157879,7.93782028,159.76,159.73,0.67]
[1762414158955,6.25907053,159.77,159.73,0.67]
[1762414159158,7.93782028,159.76,159.73,0.67]
[1762414159962,6.25907053,159.77,159.73,0.67]
[1762414160163,7.93782028,159.76,159.73,0.67]
[1762414162686,100.0,159.79,159.73,6.93021435]
[1762414162865,7.93782028,159.8,159.73,76.86803463]
[1762414163067,7.93782028,159.8,159.74,0.67]
[1762414163782,14.19575294,159.8,159.74,0.67]
[1762414163976,7.93782028,159.79,159.74,0.67]
[1762414164372,3.39113049,159.79,159.74,0.67]
[1762414165293,9.64938994,159.79,159.74,6.92979826]
[1762414165473,9.64938994,159.79,159.75,0.67]
[1762414166788,9.64938994,159.79,159.75,62.67]
[1762414167298,3.39113049,159.79,159.76,0.67]
[1762414167594,9.64903079,159.8,159.76,0.67]
[1762414167786,9.64868478,159.81,159.76,0.34786262]
[1762414167980,9.64868478,159.81,159.75,68.25976538]
[1762414169197,3.39113049,159.81,159.75,68.25976538]
[1762414169380,30.23988911,159.83,159.76,3.39113049]
[1762414169577,10.31788911,159.83,159.76,65.39113049]
[1762414169906,9.64788911,159.83,159.77,0.67]
[1762414170618,10.31788911,159.83,159.78,6.25860558]
[1762414170981,0.67,159.82,159.78,6.92860558]
[1762414171186,9.64788911,159.83,159.79,0.67]
[1762414171390,10.31788911,159.83,159.79,0.67]
[1762414172576,0.67,159.82,159.78,68.92860558]
[1762414172776,10.31788911,159.83,159.79,0.67]
[1762414173191,9.64788911,159.83,159.79,0.67]
[1762414173398,4.06113049,159.82,159.78,68.25860558]
[1762414173584,4.06113049,159.82,159.78,68.92860558]
[1762414174180,4.06113049,159.82,159.78,68.25860558]
[1762414174384,4.06113049,159.82,159.79,0.67]
[1762414174593,3.39113049,159.82,159.79,0.67]
[1762414176380,4.05113049,159.82,159.79,0.7]
[1762414176893,3.39113049,159.82,159.79,0.7]
[1762414178600,10.30788911,159.83,159.79,0.7]
[1762414178992,10.30788911,159.83,159.79,6.95818521]
[1762414179683,3.39113049,159.81,159.76,62.0]
[1762414180002,3.39113049,159.77,159.73,6.96028836]
[1762414180197,3.39113049,159.76,159.73,6.96028836]
[1762414180506,3.39113049,159.75,159.73,0.7]
[1762414181577,71.37417883,159.81,159.71,0.2]
[1762414181578,3.39113049,159.74,159.71,0.2]
[1762414181782,3.39113049,159.72,159.71,0.2]
[1762414182311,3.39113049,159.73,159.71,0.2]
[1762414183423,3.39113049,159.72,159.71,0.2]
[1762414185802,10.31208716,159.72,159.71,0.2]
[1762414186510,9.09340626,159.72,159.71,0.2]
[1762414187003,59.09340626,159.72,159.71,0.2]
[1762414187705,6.26095667,159.72,159.71,0.2]
[1762414188008,8.43301669,159.73,159.71,0.2]
[1762414188304,9.09301669,159.73,159.71,0.2]
[1762414189205,2.17244959,159.72,159.71,0.2]
[1762414189408,8.43340626,159.72,159.71,0.2]
[1762414190718,2.17244959,159.72,159.71,0.2]
[1762414191013,50.0,159.76,159.71,0.9]
[1762414191208,50.0,159.76,159.72,0.7]
[1762414191209,2.83244959,159.76,159.72,0.7]
[1762414191411,8.43223049,159.75,159.72,0.7]
[1762414191910,2.17244959,159.75,159.72,0.7]
[1762414192107,50.0,159.77,159.74,2.17244959]
[1762414192418,0.7,159.86,159.77,2.17244959]
[1762414192594,2.17244959,159.82,159.75,47.77637629]
[1762414192788,100.7,159.85,159.77,20.592]
[1762414193006,2.17244959,159.82,159.77,20.592]
[1762414193208,0.7,159.84,159.77,20.592]
[1762414193409,2.17244959,159.83,159.78,6.25860558]
[1762414193600,2.87244959,159.84,159.78,6.25860558]
[1762414193806,2.17244959,159.83,159.78,6.25860558]
[1762414194304,0.7,159.85,159.79,2.54244959]
[1762414194605,0.7,159.85,159.8,2.54244959]
[1762414195014,2.17244959,159.84,159.78,26.85060558]
[1762414195192,2.17244959,159.84,159.78,27.22060558]
[1762414195395,2.17244959,159.82,159.78,27.22060558]
[1762414195818,2.17244959,159.82,159.79,0.37]
[1762414196399,2.17244959,159.84,159.79,0.37]
[1762414197400,2.87244959,159.84,159.8,6.25782227]
[1762414197610,2.87244959,159.84,159.79,6.62821071]
[1762414198008,2.17244959,159.83,159.79,6.62821071]
[1762414198609,2.17244959,159.82,159.78,26.85053329]
[1762414198810,2.17244959,159.79,159.76,26.85118887]
[1762414198998,2.17244959,159.79,159.76,20.592]
[1762414199309,2.17244959,159.79,159.74,13.99009223]
[1762414199310,2.17244959,159.78,159.74,7.73]
[1762414199513,2.17244959,159.78,159.75,6.2597733]
[1762414199917,2.17244959,159.78,159.75,20.592]
[1762414200124,2.17244959,159.79,159.75,20.592]
[1762414200333,2.17244959,159.8,159.76,0.37]
[1762414200532,2.17244959,159.79,159.74,13.99016514]
[1762414200914,2.87244959,159.8,159.75,0.37]
[1762414201232,2.17244959,159.76,159.71,0.2]
[1762414201445,2.17244959,159.73,159.71,0.2]
[1762414201607,2.17244959,159.72,159.71,0.2]
[1762414201799,2.87244959,159.72,159.71,0.2]
[1762414202402,6.35798143,159.72,159.71,0.2]
[1762414203419,12.6189381,159.72,159.71,0.2]
[1762414203995,6.35798143,159.72,159.71,0.2]
[1762414204198,12.6189381,159.72,159.71,0.2]
[1762414205613,109.78882769,159.71,159.7,0.2]
[1762414205818,50.0,159.69,159.68,0.2]
[1762414206133,55.65798143,159.69,159.68,0.2]
[1762414206313,106.35798143,159.69,159.68,0.2]
[1762414206832,50.0,159.71,159.68,0.2]
[1762414207046,6.35798143,159.7,159.68,0.2]
[1762414207334,0.7,159.7,159.68,0.2]
[1762414207636,0.7,159.69,159.68,0.2]
[1762414208053,56.35798143,159.69,159.68,0.2]
[1762414209830,62.62011431,159.69,159.68,0.2]
[1762414212134,122.408942,159.69,159.68,0.2]
[1762414212427,112.62011431,159.69,159.68,0.2]
[1762414213137,122.408942,159.69,159.68,0.2]
[1762414213726,123.19170861,159.69,159.68,0.2]
[1762414215129,122.408942,159.69,159.68,0.2]
[1762414216028,56.96213288,159.69,159.68,0.2]
[1762414216242,62.62011431,159.69,159.68,0.2]
[1762414216610,56.96213288,159.69,159.68,0.2]
[1762414216841,62.62011431,159.69,159.68,0.2]
[1762414217010,112.62011431,159.69,159.68,0.2]
[1762414217418,122.408942,159.69,159.68,0.2]
[1762414217621,50.0,159.67,159.66,0.2]
[1762414217924,55.65798143,159.67,159.66,0.2]
[1762414218116,56.35798143,159.67,159.66,0.2]
[1762414218536,50.0,159.64,159.63,0.2]
[1762414218833,55.65798143,159.64,159.63,0.2]
[1762414219042,62.62207564,159.64,159.63,0.2]
[1762414219221,0.7,159.64,159.63,0.2]
[1762414219533,5.65798143,159.65,159.63,0.2]
[1762414220533,5.65798143,159.64,159.63,0.2]
[1762414220832,0.7,159.67,159.63,0.2]
[1762414221025,62.62051582,159.68,159.63,7.18443844]
[1762414221835,5.65798143,159.67,159.63,0.92]
[1762414222147,55.65798143,159.66,159.63,0.2]
[1762414222340,52.88378496,159.66,159.63,0.2]
[1762414222640,2.17378496,159.67,159.63,0.2]
[1762414222811,2.17378496,159.67,159.63,0.92]
[1762414223234,2.17378496,159.67,159.64,0.72]
[1762414224239,8.43671139,159.67,159.63,0.2]
[1762414224533,8.43671139,159.67,159.63,0.92]
[1762414224914,2.17378496,159.67,159.63,6.46434684]
[1762414225132,52.17378496,159.68,159.64,0.72]
[1762414225522,58.43631737,159.68,159.64,0.72]
[1762414225728,2.17378496,159.67,159.64,0.72]
[1762414225920,52.17378496,159.68,159.64,0.72]
[1762414226122,52.88378496,159.68,159.64,0.72]
[1762414226329,2.17378496,159.67,159.64,0.72]
[1762414226731,2.17378496,159.66,159.63,0.2]
[1762414226929,2.88378496,159.66,159.63,0.2]
[1762414227124,2.17378496,159.65,159.63,0.2]
[1762414227336,2.88378496,159.66,159.63,0.2]
[1762414227645,2.17378496,159.67,159.63,7.18440498]
[1762414227843,2.88378496,159.67,159.63,7.18440498]
[1762414228039,9.14675496,159.67,159.63,7.18440498]
[1762414228345,9.14675496,159.67,159.63,0.92]
[1762414228644,2.17378496,159.66,159.63,0.92]
[1762414228945,2.17378496,159.66,159.63,0.2]
[1762414228946,2.17378496,159.64,159.63,0.2]
[1762414229143,52.17378496,159.64,159.63,0.2]
[1762414229319,52.88378496,159.64,159.63,0.2]
[1762414230141,118.93670686,159.64,159.63,0.2]
[1762414230645,118.93670686,159.64,159.57,0.2]
[1762414230646,50.0,159.6,159.57,0.2]
[1762414230844,52.17378496,159.58,159.57,0.2]
[1762414231234,52.88378496,159.58,159.57,0.2]
[1762414231746,102.88378496,159.58,159.57,0.2]
[1762414232336,112.6447225,159.58,159.57,0.2]
[1762414233723,122.43355019,159.58,159.57,0.2]
[1762414235447,123.21685636,159.58,159.57,0.2]
[1762414235959,112.6447225,159.58,159.57,0.2]
[1762414238134,123.21685636,159.58,159.57,0.2]
[1762414243142,122.43355019,159.58,159.57,0.2]
[1762414243524,55.66827308,159.58,159.57,0.2]
[1762414243730,62.6047225,159.58,159.57,0.2]
[1762414244055,61.9347225,159.58,159.57,0.2]
[1762414244446,56.26644942,159.58,159.57,0.2]
[1762414244628,61.9347225,159.58,159.57,0.2]
[1762414245972,50.0,159.58,159.57,0.2]
[1762414246148,5.66827308,159.6,159.57,0.91]
[1762414246348,50.0,159.6,159.57,0.2]
[1762414246552,7.95624139,159.64,159.58,0.71]
[1762414246758,50.0,159.66,159.59,7.95624139]
[1762414246759,7.95624139,159.66,159.59,7.95624139]
[1762414246961,50.0,159.67,159.63,7.95624139]
[1762414247334,50.0,159.67,159.59,20.592]
[1762414247335,7.95624139,159.65,159.61,0.71]
[1762414247542,7.95624139,159.64,159.61,0.71]
[1762414247751,7.95624139,159.62,159.61,0.71]
[1762414247954,7.95624139,159.63,159.61,0.71]
[1762414249162,7.95624139,159.62,159.57,21.502]
[1762414249460,7.95624139,159.61,159.57,27.05874395]
[1762414249652,7.95624139,159.61,159.58,0.71]
[1762414249845,7.95624139,159.6,159.58,0.71]
[1762414250234,50.0,159.63,159.58,0.71]
[1762414250434,50.0,159.65,159.58,0.71]
[1762414250633,7.95624139,159.61,159.58,0.71]
[1762414251358,7.95624139,159.6,159.59,6.26605677]
[1762414251861,7.95624139,159.6,159.59,6.97605677]
[1762414253048,7.95624139,159.6,159.58,6.26637014]
[1762414253342,7.95624139,159.59,159.58,6.26637014]
[1762414253941,7.95624139,159.59,159.58,0.71]
[1762414255560,7.95624139,159.59,159.58,6.97644942]
[1762414256154,50.0,159.65,159.58,68.97644942]
[1762414256344,7.95624139,159.59,159.58,68.26644942]
[1762414256945,7.95624139,159.59,159.58,68.97644942]
[1762414260652,7.95624139,159.59,159.58,6.97644942]
[1762414261051,50.0,159.68,159.61,20.592]
[1762414261340,7.95624139,159.63,159.62,0.71]
[1762414261540,7.95624139,159.63,159.61,20.592]
[1762414261849,7.95624139,159.62,159.58,105.23457299]
[1762414262048,7.95624139,159.59,159.58,42.52457299]
[1762414262453,7.95624139,159.59,159.58,20.592]
[1762414262658,7.95624139,159.59,159.58,0.71]
[1762414263675,7.95624139,159.59,159.58,6.97644942]
[1762414264856,7.95624139,159.61,159.6,20.592]
[1762414265064,7.95624139,159.62,159.6,20.592]
[1762414265271,7.95624139,159.62,159.61,0.71]
[1762414265573,7.95624139,159.62,159.6,20.592]
[1762414265750,7.95624139,159.61,159.6,27.56739604]
[1762414266672,7.95624139,159.61,159.6,89.56739604]
[1762414268502,7.95624139,159.61,159.6,105.23155644]
[1762414268780,50.0,159.74,159.65,20.592]
[1762414268956,7.95624139,159.7,159.66,7.36]
[1762414269154,7.95624139,159.67,159.64,0.71]
[1762414269382,50.72,159.7,159.65,20.592]
[1762414269668,0.72,159.69,159.65,20.592]
[1762414270381,7.95624139,159.66,159.65,20.592]
[1762414271369,8.67624139,159.66,159.61,0.71]
[1762414271558,7.95624139,159.62,159.61,0.71]
[1762414271756,7.95624139,159.62,159.61,21.302]
[1762414273257,7.95624139,159.63,159.61,0.71]
[1762414273468,7.95624139,159.63,159.62,20.592]
[1762414273857,100.72,159.68,159.62,20.592]
[1762414274181,7.95624139,159.63,159.62,20.592]
[1762414275085,100.0,159.68,159.62,20.592]
[1762414275275,7.95624139,159.63,159.62,27.56687908]
[1762414275784,7.95624139,159.63,159.61,20.592]
[1762414275958,7.95624139,159.62,159.59,0.71]
[1762414276158,7.95624139,159.6,159.59,0.71]
[1762414276682,7.95624139,159.6,159.59,21.302]
[1762414276860,7.95624139,159.6,159.57,0.2]
[1762414277066,7.95624139,159.58,159.57,0.2]
[1762414277480,7.95624139,159.58,159.55,0.2]
[1762414277481,64.94269081,159.58,159.55,0.2]
[1762414277795,64.94269081,159.58,159.48,17.06577077]
[1762414277796,57.95624139,159.56,159.48,17.06577077]
[1762414277967,0.72,159.57,159.51,20.592]
[1762414278174,7.95624139,159.53,159.52,0.91]
[1762414278875,7.95624139,159.53,159.52,0.2]
[1762414279693,8.67624139,159.53,159.52,0.2]
[1762414279906,50.0,159.52,159.46,6.27086629]
[1762414280201,7.95624139,159.5,159.46,6.27086629]
[1762414280502,15.91248278,159.5,159.47,20.592]
[1762414280678,16.63248278,159.5,159.47,20.592]
[1762414280877,7.95624139,159.5,159.48,6.27037118]
[1762414281090,7.95624139,159.5,159.48,6.27029206]
[1762414281396,7.95624139,159.5,159.47,26.86274822]
[1762414281607,7.95624139,159.5,159.48,6.27031223]
[1762414281808,7.95624139,159.5,159.47,6.27070842]
[1762414282103,7.95624139,159.5,159.47,26.86270842]
[1762414282404,8.61624139,159.5,159.47,20.592]
[1762414282577,32.63090294,159.5,159.44,0.2]
[1762414282778,26.36131047,159.5,159.44,6.47195022]
[1762414283196,32.63090294,159.5,159.44,6.47195022]
[1762414283600,100.0,159.53,159.44,0.2]
[1762414283777,7.95624139,159.5,159.48,6.27030667]
[1762414284205,7.95624139,159.5,159.49,6.46998557]
[1762414284393,7.95624139,159.51,159.49,7.13998557]
[1762414284588,0.66,159.56,159.5,0.67]
[1762414284906,7.95624139,159.51,159.49,6.46998557]
[1762414285201,7.95624139,159.5,159.49,27.06198557]
[1762414287078,7.95624139,159.51,159.49,27.73198557]
[1762414287405,7.95624139,159.52,159.49,42.73694951]
[1762414287608,7.95624139,159.51,159.49,27.06198557]
[1762414287796,7.95624139,159.51,159.49,20.792]
[1762414288098,7.95624139,159.51,159.49,27.06198557]
[1762414288904,7.95624139,159.51,159.49,27.73198557]
[1762414289475,7.95624139,159.51,159.49,27.06198557]
[1762414290385,7.95624139,159.51,159.49,20.792]
[1762414290708,8.61624139,159.5,159.49,0.2]
[1762414290908,0.66,159.5,159.49,0.2]
[1762414291078,7.95624139,159.5,159.49,0.2]
[1762414292193,58.61624139,159.5,159.49,0.2]
[1762414292585,64.88583386,159.5,159.49,0.2]
[1762414292906,82.63090294,159.5,159.49,0.2]
[1762414294001,83.41460199,159.5,159.49,0.2]
[1762414295000,82.63090294,159.5,159.49,0.2]
[1762414295221,68.40506908,159.5,159.49,0.2]
[1762414295388,8.61624139,159.5,159.49,0.2]
[1762414295698,7.95624139,159.52,159.49,7.13998557]
[1762414296031,7.95624139,159.53,159.49,22.81494951]
[1762414296209,7.95624139,159.53,159.5,0.67]
[1762414296413,7.95624139,159.52,159.5,0.67]
[1762414297184,7.95624139,159.52,159.49,6.46998557]
[1762414297386,7.95624139,159.5,159.49,0.87]
[1762414297607,7.95624139,159.5,159.49,0.2]
[1762414297801,7.95624139,159.51,159.49,7.13995637]
[1762414297988,7.95624139,159.51,159.49,0.2]
[1762414298194,7.95624139,159.5,159.49,0.2]
[1762414298407,8.67624139,159.5,159.49,0.2]
[1762414298986,68.46506908,159.5,159.49,0.2]
[1762414299208,76.42131047,159.5,159.49,0.2]
[1762414299416,82.69090294,159.5,159.49,0.2]
[1762414299606,8.67624139,159.5,159.49,0.2]
[1762414299911,7.95624139,159.5,159.49,0.2]
[1762414300296,8.67624139,159.5,159.49,0.2]
[1762414301002,14.94583386,159.5,159.49,0.2]
[1762414301704,82.69090294,159.5,159.49,0.2]
[1762414305994,82.69090294,159.5,159.44,0.2]
[1762414305995,6.27077193,159.47,159.44,0.2]
[1762414306208,7.95624139,159.45,159.44,0.2]
[1762414306592,8.67624139,159.45,159.44,0.2]
[1762414306996,106.99043013,159.48,159.44,0.2]
[1762414307198,7.95624139,159.45,159.44,0.2]
[1762414308421,5.67515382,159.45,159.44,0.2]
[1762414308997,6.39515382,159.45,159.44,0.2]
[1762414310323,5.67515382,159.45,159.44,0.2]
[1762414315206,5.67515382,159.46,159.44,7.15193688]
[1762414315613,5.67515382,159.46,159.44,0.88]
[1762414315815,5.67515382,159.46,159.44,7.15194077]
[1762414316332,5.67515382,159.45,159.44,0.2]
[1762414317417,5.67515382,159.46,159.44,0.2]
[1762414318018,5.67515382,159.46,159.44,6.47192847]
[1762414318229,5.67515382,159.46,159.44,7.15192847]
[1762414318419,5.67515382,159.47,159.44,6.47192847]
[1762414318603,5.67515382,159.49,159.45,0.68]
[1762414318808,5.67515382,159.48,159.45,0.68]
[1762414320197,5.67515382,159.49,159.46,6.27116518]
[1762414320404,5.67515382,159.47,159.45,62.0]
[1762414320623,5.67515382,159.46,159.44,0.2]
[1762414320799,5.67515382,159.45,159.44,0.2]
[1762414321001,6.39515382,159.45,159.44,0.2]
[1762414321839,56.39515382,159.45,159.44,0.2]
[1762414322125,6.39515382,159.45,159.44,0.2]
[1762414322348,5.67515382,159.45,159.44,0.2]
[1762414322926,11.9467123,159.45,159.44,0.2]
[1762414323240,22.45553999,159.45,159.44,0.2]
[1762414323445,109.78882769,159.43,159.42,0.2]
[1762414323650,115.46398151,159.43,159.42,0.2]
[1762414323824,116.18398151,159.43,159.42,0.2]
[1762414324221,122.45632673,159.43,159.42,0.2]
[1762414325525,56.99234522,159.43,159.42,0.2]
[1762414325826,62.66749904,159.43,159.42,0.2]
[1762414326060,56.99234522,159.43,159.42,0.2]
[1762414326226,55.67515382,159.43,159.42,0.2]
[1762414326422,62.66749904,159.43,159.42,0.2]
[1762414327442,56.99234522,159.43,159.42,0.2]
[1762414327623,62.66749904,159.43,159.42,0.2]
[1762414328044,61.94749904,159.43,159.42,0.2]
[1762414328229,5.67515382,159.44,159.42,0.88]
[1762414328437,5.67515382,159.44,159.42,0.2]
[1762414328830,5.67515382,159.45,159.42,6.47263627]
[1762414329045,5.67515382,159.45,159.42,7.15263627]
[1762414329437,5.67515382,159.47,159.43,0.68]
[1762414329947,0.72,159.52,159.45,26.26715382]
[1762414330128,5.67515382,159.51,159.45,26.26715382]
[1762414330331,5.67515382,159.51,159.46,6.27116518]
[1762414330537,5.67515382,159.5,159.46,6.27116518]
[1762414330743,5.67515382,159.5,159.46,6.95116518]
[1762414331052,5.67515382,159.51,159.46,6.95116518]
[1762414331232,5.67515382,159.51,159.46,12.626319]
[1762414331440,5.67515382,159.51,159.47,0.68]
[1762414331750,5.67515382,159.49,159.44,0.68]
[1762414331931,5.67515382,159.47,159.45,20.592]
[1762414332947,5.67515382,159.47,159.44,6.27186871]
[1762414333449,5.67515382,159.45,159.44,20.592]
[1762414333837,5.67515382,159.45,159.42,0.2]
[1762414334363,5.67515382,159.45,159.42,6.47270358]
[1762414335256,0.72,159.48,159.42,6.47270358]
[1762414335430,5.67515382,159.47,159.43,0.68]
[1762414335632,100.0,159.51,159.45,5.67515382]
[1762414335633,5.67515382,159.5,159.45,5.67515382]
[1762414336128,5.67515382,159.51,159.46,6.35515382]
[1762414336328,5.67515382,159.52,159.47,5.67515382]
[1762414336534,5.67515382,159.51,159.45,67.67515382]
[1762414336734,5.67515382,159.5,159.45,68.35515382]
[1762414336967,5.67515382,159.49,159.45,62.68]
[1762414337456,6.39515382,159.48,159.45,68.27147335]
[1762414337757,5.67515382,159.48,159.45,68.27147335]
[1762414337962,100.0,159.51,159.45,62.0]
[1762414338166,5.67515382,159.49,159.45,62.0]
[1762414338474,5.67515382,159.49,159.45,68.2715389]
[1762414338929,11.94444719,159.51,159.46,0.68]
[1762414339137,5.67515382,159.51,159.46,6.35515382]
[1762414339440,6.39515382,159.51,159.46,6.95081385]
[1762414339656,5.67515382,159.49,159.45,62.0]
[1762414339830,5.67515382,159.49,159.44,74.62676242]
[1762414340034,5.67515382,159.5,159.45,0.68]
[1762414340237,50.0,159.55,159.46,5.67515382]
[1762414340455,50.0,159.54,159.47,5.67515382]
[1762414340742,5.67515382,159.52,159.47,6.35515382]
[1762414340939,50.72,159.54,159.48,0.68]
[1762414341128,5.67515382,159.52,159.48,0.68]
[1762414341340,5.67515382,159.52,159.48,6.950155]
[1762414341539,5.67515382,159.5,159.46,62.0]
[1762414341745,5.67515382,159.48,159.45,6.27155848]
[1762414342462,5.67515382,159.49,159.45,6.27155848]
[1762414342658,5.67515382,159.49,159.46,0.69]
[1762414342960,56.98903212,159.52,159.47,6.27077193]
[1762414343160,6.39515382,159.51,159.47,6.27077193]
[1762414343370,5.67515382,159.5,159.47,6.27077193]
[1762414343663,6.39515382,159.51,159.47,6.27077193]
[1762414344042,6.39515382,159.51,159.46,0.69]
[1762414344238,5.67515382,159.5,159.46,6.96111445]
[1762414344645,6.98903212,159.52,159.46,6.96111445]
[1762414344969,6.98936398,159.51,159.45,6.27155848]
[1762414345151,5.67515382,159.5,159.45,12.6367123]
[1762414345539,5.67515382,159.5,159.46,0.69]
[1762414345738,6.39515382,159.51,159.46,68.36515382]
[1762414345938,5.67515382,159.53,159.47,5.67515382]
[1762414346168,6.39515382,159.52,159.46,67.67515382]
[1762414346347,5.67515382,159.51,159.46,67.67515382]
[1762414346547,5.67515382,159.51,159.46,68.36515382]
[1762414346860,5.67515382,159.51,159.47,0.69]
[1762414347576,5.67515382,159.51,159.47,6.96042433]
[1762414347880,12.66401532,159.52,159.47,6.96042433]
[1762414349677,5.67515382,159.48,159.43,0.69]
[1762414349848,5.67515382,159.46,159.42,6.47269867]
[1762414350163,5.67515382,159.47,159.42,12.83785249]
[1762414350462,5.67515382,159.46,159.42,7.16269867]
[1762414350878,5.67515382,159.45,159.42,0.89]
[1762414351766,5.67515382,159.45,159.42,7.16260936]
[1762414352266,5.67515382,159.43,159.42,0.2]
[1762414352654,66.18398151,159.43,159.42,0.2]
[1762414353761,72.45632673,159.43,159.42,0.2]
[1762414353959,61.94749904,159.43,159.42,0.2]
[1762414354674,62.66749904,159.43,159.42,0.2]
[1762414356350,61.94749904,159.43,159.42,0.2]
[1762414356543,12.65677941,159.45,159.42,0.2]
[1762414356958,6.38515382,159.45,159.42,0.2]
[1762414357265,12.65677245,159.45,159.42,0.2]
[1762414357450,5.67515382,159.44,159.42,0.2]
[1762414358252,12.65677245,159.45,159.42,0.2]
[1762414358744,12.65677245,159.45,159.41,0.2]
[1762414358745,86.05598151,159.43,159.41,0.2]
[1762414358951,20.592,159.39,159.33,0.2]
[1762414359152,5.67515382,159.36,159.33,0.2]
[1762414359673,5.67515382,159.35,159.33,0.2]
[1762414360272,5.67515382,159.34,159.33,0.2]
[1762414360475,6.38515382,159.34,159.33,0.2]
[1762414360860,9.78882769,159.4,159.33,12.82142387]
[1762414361177,5.67515382,159.39,159.33,7.14627005]
[1762414361354,5.67515382,159.39,159.34,6.34515382]
[1762414361773,5.67515382,159.39,159.35,0.67]
[1762414362176,11.94907586,159.39,159.35,0.67]
[1762414362381,5.67515382,159.39,159.35,6.94545422]
[1762414362768,5.67515382,159.39,159.36,0.67]
[1762414362978,5.67515382,159.4,159.36,0.67]
[1762414363781,6.38515382,159.4,159.36,0.67]
[1762414364281,12.65868399,159.4,159.36,0.67]
[1762414364665,0.71,159.4,159.36,6.94504659]
[1762414364859,55.67515382,159.41,159.36,6.94504659]
[1762414365059,56.38515382,159.41,159.37,0.67]
[1762414365271,56.38515382,159.41,159.36,6.27504659]
[1762414365272,5.67515382,159.39,159.36,6.27504659]
[1762414365477,61.94832099,159.41,159.37,0.67]
[1762414365674,0.71,159.42,159.37,6.94464203]
[1762414365876,5.67515382,159.41,159.37,6.94464203]
[1762414366388,6.38515382,159.41,159.37,6.94464203]
[1762414366577,5.67515382,159.4,159.37,0.67]
[1762414366772,6.38515382,159.41,159.37,0.67]
[1762414367174,6.38515382,159.41,159.36,6.27481528]
[1762414367366,5.67515382,159.4,159.37,0.67]
[1762414367567,6.38515382,159.41,159.37,0.67]
[1762414368066,6.38515382,159.41,159.37,6.94453854]
[1762414368466,8.68535336,159.41,159.37,6.94453854]
[1762414368882,14.24849263,159.41,159.36,0.67]